Workbook

Sheet Меню младшие 1-4 кл Весна
B12: Согласовано | I12: Разработано и утвеждено
B13: Руководитель общеобразовательного учреждения | I13: Директор ООО "ФУДСОЦСЕРВИС"
B15: ________________________ | I15: ________________Э.Р. Харламова
B20: Примерное цикличное двенадцатидневное меню
B21: Для организации бесплатного горячего питания (горячих завтраков) для обучающихся начальных классов
B22: общеобразовательных организаций Республики Татарстан
B52: ПРИМЕРНОЕ ДВУХНЕДЕЛЬНОЕ МЕНЮ ДЛЯ ОБУЧАЮЩИХСЯ В ОБЩЕОБРАЗОВАТЕЛЬНЫХ ОРГАНИЗАЦИЯХ С 1 по 4 КЛАССЫ
A54: № рецептуры | B54: Наименование блюд | C54: Выход,г | D54: Белки, г | E54: Жиры, г | F54: Углеводы, г | G54: Калорийность, ккал | H54: Витамин B1, мг | I54: Витамин С, мг | J54: Витамин А, мг | K54: Витамин Е, мг | L54: Ca, мг | M54: P, мг | N54: Mg, мг | O54: Fe, мг
B55: 1-ая неделя
B56: 1 день
A57: № 271 Сбор.рец. На прод-ию для обуч. Во всех образ.учреж-Дели 2017 | B57: Котлета домашняя из говядины | C57: 90 | D57: 8.15 | E57: 10.50 | F57: 8.10 | G57: 199.57 | H57: 0.14 | I57: 0.20 | J57: 2.74 | K57: 2.27 | L57: 13.48 | M57: 104.60 | N57: 16.08 | O57: 1.70
A58: № 203 Сбор.рец. На прод-ию для обуч. Во всех образ.учреж-Дели 2017 | B58: Макаронные изделия (рожки) отварные с маслом сливочным | C58: 150/5 | D58: 5.12 | E58: 4.53 | F58: 31.99 | G58: 189.30 | H58: 0.06 | I58: 0.00 | J58: 20.00 | K58: 0.82 | L58: 12.39 | M58: 38.67 | N58: 8.62 | O58: 0.86
A59: №349 Сбор.рец. На прод-ию для обуч. Во всех образ.учреж-Дели 2017 | B59: Компот из сухофруктов (75С) | C59: 200 | D59: 0.66 | E59: 0.09 | F59: 22.03 | G59: 92.90 | H59: 0.02 | I59: 0.73 | J59: 0.00 | K59: 0.51 | L59: 32.48 | M59: 23.44 | N59: 17.46 | O59: 0.70
A60: ТТК | B60: Печенье | C60: 40 | D60: 3.06 | E60: 3.76 | F60: 17.24 | G60: 91.80 | H60: 0.05 | I60: 0.00 | J60: 0.00 | K60: 1.48 | L60: 10.40 | M60: 33.60 | N60: 12.00 | O60: 0.56
A61: Хим.состав и калорийность российских продуктов питания,табл 6, стр 144 , 2012 Дели + | B61: Хлеб ржаной | C61: 20 | D61: 1.32 | E61: 0.24 | F61: 7.92 | G61: 39.60 | H61: 0.03 | I61: 0.00 | J61: 0.00 | K61: 0.28 | L61: 5.80 | M61: 30.00 | N61: 9.40 | O61: 0.78 | P61: 0 | Q61: 0
B62: Итого: | C62: 505 | D62: =SUM(D57:D61) -> 18.31 | E62: =SUM(E57:E61) -> 19.12 | F62: 87.28 | G62: 613.17 | H62: 0.30 | I62: 0.92 | J62: 22.74 | K62: 5.36 | L62: 74.55 | M62: 230.30 | N62: 63.56 | O62: 4.60 | P62: =SUM(P57:P61) -> 0.00 | Q62: =SUM(Q57:Q61) -> 0.00
B64: 2 день
A65: Хим.состав и калорийность российских продуктов питания табл 9 стр 186 , 2012 Дели + | B65: Плоды и ягоды свежие (апельсин) | C65: 100 | D65: 0.9 | E65: 0.20 | F65: 8.9 | G65: 43.0 | H65: 0.04 | I65: 60.00 | K65: 0.20 | L65: 34.00 | M65: 23.00 | N65: 13.00 | O65: 0.30
A66: № 15 Сбор.рец. На прод-ию для обуч. Во всех образ.учреж-Дели -2017 | B66: Сыр порционно | C66: 10 | D66: 2.63 | E66: 2.66 | F66: 0.0 | G66: 34.3 | H66: 0.00 | I66: 0.07 | J66: 21 | K66: 0.04 | L66: 100.00 | M66: 60.00 | N66: 5.50 | O66: 0.07
A67: № 260 Сбор.рец. На прод-ию для обуч. Во всех образ.учреж-Дели -2017 | B67: Гуляш из говядины | C67: 50/50 | D67: 10.45 | E67: 10.71 | F67: 22.89 | G67: 221.00 | H67: 0.03 | I67: 0.92 | K67: 2.61 | L67: 21.81 | M67: 154.15 | N67: 22.03 | O67: 3.06
A68: № 171 Сбор.рец. На прод-ию для обуч. Во всех образ.учреж-Дели 2017 | B68: Каша гречневая рассыпчатая с маслом сливочным | C68: 150/5 | D68: 4.61 | E68: 6.92 | F68: 27.79 | G68: 207.00 | H68: 0.21 | I68: 0.00 | J68: 20.00 | K68: 0.45 | L68: 25.19 | M68: 208.85 | N68: 140.52 | O68: 4.72
A69: № 377 Сбор.рец. На прод-ию для обуч. Во всех образ.учреж-Дели 2017 | B69: Чай с сахаром, с лимоном | C69: 185/10/5 | D69: 0.13 | E69: 0.02 | F69: 10.20 | G69: 42.00 | I69: 2.83 | K69: 0.01 | L69: 14.05 | M69: 4.40 | N69: 2.40 | O69: 0.34
A70: Хим.состав и калорийность российских продуктов питания табл 6 стр 134 , 2012 Дели + | B70: Хлеб пшеничный | C70: 20 | D70: 1.52 | E70: 0.16 | F70: 9.84 | G70: 47.00 | H70: 0.02 | I70: 0.00 | J70: 0.00 | K70: 0.22 | L70: 4.00 | M70: 13.00 | N70: 2.80 | O70: 0.22 | P70: 0 | Q70: 0
B71: Итого: | C71: 585 | D71: =SUM(D65:D70) -> 20.19 | E71: =SUM(E65:E70) -> 20.67 | F71: 79.62 | G71: 594.33 | H71: 0.31 | I71: 63.82 | J71: 41.00 | K71: 3.53 | L71: 199.05 | M71: 463.40 | N71: 186.25 | O71: 8.71 | P71: =SUM(P65:P70) -> 0.00 | Q71: =SUM(Q65:Q70) -> 0.00
B84: 3 день
A85: № 54 Сбор.рец. На прод-ию для обуч. Во всех образ.учреж-Дели 2017, 366/2016 | B85: Салат из свеклы с яблоками | C85: 60 | D85: 0.65 | E85: 4.18 | F85: 6.72 | G85: 62.34 | H85: 0.01 | I85: 3.86 | J85: 0.00 | K85: 6.36 | L85: 17.56 | M85: 19.08 | N85: 10.10 | O85: 0.89
A86: № 293 Сбор.рец. На прод-ию для обуч. Во всех образ.учреж-Дели 2017, 366/2016 | B86: Куриные бедра запеченные с томатным соусом | C86: 90/20 | D86: 12.00 | E86: 10.04 | F86: 8.60 | G86: 195.10 | H86: 0.10 | I86: 3.04 | J86: 64.92 | K86: 1.70 | L86: 47.55 | M86: 162.01 | N86: 24.73 | O86: 1.65
A87: № 304 Сбор.рец. На прод-ию для обуч. Во всех образ.учреж-Дели 2017 | B87: Рис отварной рассыпчатый с маслом сливочным | C87: 150/5 | D87: 3.74 | E87: 4.15 | F87: 39.23 | G87: 209.00 | H87: 0.03 | I87: 0.00 | J87: 20.00 | K87: 0.33 | L87: 2.57 | M87: 62.45 | N87: 16.34 | O87: 0.54
A88: № 376 Сбор.рец. На прод-ию для обуч. Во всех образ.учреж-Дели 2017 | B88: Чай с мармеладом | C88: 185/13,5 | D88: 0.09 | E88: 0.02 | F88: 10.72 | G88: 43.34 | I88: 0.03 | L88: 11.25 | M88: 2.95 | N88: 1.70 | O88: 0.29
A89: Хим.состав и калорийность российских продуктов питания табл 6 стр 134 , 2012 Дели + | B89: Хлеб пшеничный | C89: 20 | D89: 1.520 | E89: 0.160 | F89: 9.840 | G89: 47 | H89: 0.022 | I89: 0 | J89: 0 | K89: 0.220 | L89: 4.000 | M89: 13.000 | N89: 2.800 | O89: 0.220 | P89: 0 | Q89: 0
A90: Хим.состав и калорийность российских продуктов питания,табл 6, стр 144 , 2012 Дели + | B90: Хлеб ржаной | C90: 20 | D90: 1.32 | E90: 0.24 | F90: 7.92 | G90: 39.60 | H90: 0.03 | I90: 0.00 | J90: 0.00 | K90: 0.28 | L90: 5.80 | M90: 30.00 | N90: 9.40 | O90: 0.78
B91: Итого: | C91: 563.5 | D91: =SUM(D85:D90) -> 19.33 | E91: =SUM(E85:E90) -> 18.79 | F91: 83.04 | G91: 596.38 | H91: 0.20 | I91: 6.93 | J91: 84.92 | K91: 8.89 | L91: 88.73 | M91: 289.49 | N91: 65.07 | O91: 4.36 | P91: 25% | Q91: 25%
B93: 4 день
A94: № 229 Сбор.рец. На прод-ию для обуч. Во всех образ.учреж-Дели 2017 | B94: Рыба, тушенная в томате с овощами | C94: 50/50 | D94: 9.15 | E94: 5.62 | F94: 7.80 | G94: 105.00 | H94: 0.05 | I94: 3.73 | J94: 5.82 | K94: 2.52 | L94: 39.07 | M94: 162.19 | N94: 48.53 | O94: 0.85
A95: № 312 Сбор.рец. На прод-ию для обуч. Во всех образ.учреж-Дели -2017 | B95: Пюре картофельное с маслом сливочным | C95: 150/5 | D95: 3.10 | E95: 8.43 | F95: 20.51 | G95: 170.25 | H95: 0.14 | I95: 18.16 | J95: 20.00 | K95: 0.23 | L95: 38.18 | M95: 88.10 | N95: 27.75 | O95: 1.02
A96: № 139 Сбор.рец. На прод-ию для обуч. Во всех образ.учреж-Дели -2017 | B96: Капуста тушеная (доп. гарнир) | C96: 75 | D96: 0.92 | E96: 1.98 | F96: 5.92 | G96: 57.75 | H96: 0.02 | I96: 12.81 | J96: 0.00 | K96: 1.46 | L96: 44.06 | M96: 30.52 | N96: 15.64 | O96: 0.62
A97: № 342 Сбор.рец. На прод-ию для обуч. Во всех образ.учреж-Дели 2017 | B97: Компот из свежих яблок (75 С) | C97: 200 | D97: 0.16 | E97: 0.16 | F97: 13.91 | G97: 58.74 | H97: 0.01 | I97: 0.90 | J97: 0.00 | K97: 0.08 | L97: 14.18 | M97: 4.40 | N97: 5.14 | O97: 0.95
A98: Хим.состав и калорийность российских продуктов питания табл 6 стр 134 , 2012 Дели + | B98: Хлеб пшеничный | C98: 20 | D98: 1.520 | E98: 0.160 | F98: 9.840 | G98: 47 | H98: 0.022 | I98: 0 | J98: 0 | K98: 0.220 | L98: 4.000 | M98: 13.000 | N98: 2.800 | O98: 0.220
A99: Хим.состав и калорийность российских продуктов питания,табл 6, стр 144 , 2012 Дели + | B99: Хлеб ржаной | C99: 20 | D99: 1.32 | E99: 0.24 | F99: 7.92 | G99: 39.60 | H99: 0.03 | I99: 0.00 | J99: 0.00 | K99: 0.28 | L99: 5.80 | M99: 30.00 | N99: 9.40 | O99: 0.78
B100: Итого: | C100: 570 | D100: =SUM(D94:D99) -> 16.17 | E100: =SUM(E94:E99) -> 16.59 | F100: 65.90 | G100: 478.34 | H100: 0.28 | I100: 35.60 | J100: 25.82 | K100: 4.79 | L100: 145.29 | M100: 328.20 | N100: 109.26 | O100: 4.44 | P100: 0.00 | Q100: 0.00
B102: 5 день
A103: № 15 Сбор.рец. На прод-ию для обуч. Во всех образ.учреж-Дели -2017 | B103: Сыр порционно | C103: 15 | D103: 3.95 | E103: 3.99 | F103: 0.00 | G103: 51.50 | H103: 0.01 | I103: 0.11 | J103: 31.50 | K103: 0.06 | L103: 150.00 | M103: 90.00 | N103: 8.25 | O103: 0.11
A104: № 294 Сбор.рец. На прод-ию для обуч. Во всех образ.учреж-Дели -2017 | B104: Котлеты из мяса кур | C104: 90 | D104: 11.85 | E104: 8.06 | F104: 18.53 | G104: 198.00 | H104: 0.18 | I104: 0.81 | J104: 12.42 | K104: 61.47 | L104: 51.64 | M104: 69.30 | N104: 19.98 | O104: 3.24
A105: № 175 Сбор.рец. На прод-ию для обуч. Во всех образ.учреж-Дели 2017 | B105: Каша "Дружба" молочная с маслом сливочным | C105: 180/5 | D105: 2.00 | E105: 7.46 | F105: 36.08 | G105: 207.60 | H105: 0.09 | I105: 0.86 | J105: 33.32 | K105: 0.12 | L105: 119.08 | M105: 139.85 | N105: 33.50 | O105: 0.72
A106: № 377 Сбор.рец. На прод-ию для обуч. Во всех образ.учреж-Дели 2017 | B106: Чай с сахаром, с лимоном | C106: 185/10/5 | D106: 0.13 | E106: 0.02 | F106: 10.20 | G106: 42.00 | I106: 2.83 | K106: 0.01 | L106: 14.05 | M106: 4.40 | N106: 2.40 | O106: 0.34
A107: Хим.состав и калорийность российских продуктов питания табл 6 стр 134 , 2012 Дели + | B107: Хлеб пшеничный | C107: 30 | D107: 2.28 | E107: 0.24 | F107: 14.76 | G107: 70.50 | H107: 0.03 | I107: 0.00 | J107: 0.00 | K107: 0.33 | L107: 6.00 | M107: 19.50 | N107: 4.20 | O107: 0.33 | P107: 0 | Q107: 0
B108: Итого: | C108: 520 | D108: =SUM(D103:D107) -> 20.21 | E108: =SUM(E103:E107) -> 19.77 | F108: 79.56 | G108: 569.60 | H108: 0.31 | I108: 4.61 | J108: 77.24 | K108: 61.99 | L108: 340.77 | M108: 323.05 | N108: 68.33 | O108: 4.74 | P108: 0.00 | Q108: 0.00
B110: 6 день
A111: Хим.состав и калорийность российских продуктов питания табл 9 стр 184 , 2012 Дели + | B111: Плоды и ягоды свежие (яблоки) | C111: 100 | D111: 0.40 | E111: 0.40 | F111: 9.80 | G111: 47.00 | H111: 0.03 | I111: 10.00 | K111: 0.20 | L111: 16.00 | M111: 11.00 | N111: 9.00 | O111: 2.20
A112: № 271 Сбор.рец. На прод-ию для обуч. Во всех образ.учреж-Дели 2017 | B112: Котлеты говяжьи | C112: 90 | D112: 10.18 | E112: 13.75 | F112: 11.77 | G112: 183.40 | H112: 0.05 | I112: 0.00 | J112: 0.00 | K112: 3.11 | L112: 9.38 | M112: 150.08 | N112: 27.54 | O112: 2.41
A113: № 199 Сбор.рец. На прод-ию для обуч. Во всех образ.учреж-Дели 2017 | B113: Гороховое пюре с маслом сливочным | C113: 150/5 | D113: 5.62 | E113: 5.04 | F113: 34.99 | G113: 208.50 | H113: 0.50 | I113: 0.00 | J113: 20.00 | K113: 0.50 | L113: 94.11 | M113: 212.33 | N113: 61.70 | O113: 4.69
A114: № 376 Сбор.рец. На прод-ию для обуч. Во всех образ.учреж-Дели 2017 | B114: Чай с сахаром | C114: 190/10 | D114: 0.07 | E114: 0.02 | F114: 10 | G114: 40 | I114: 0.03 | L114: 10.95 | M114: 2.8 | N114: 1.4 | O114: 0.26
A115: Хим.состав и калорийность российских продуктов питания табл 6 стр 134 , 2012 Дели + | B115: Хлеб пшеничный | C115: 20 | D115: 1.520 | E115: 0.160 | F115: 9.840 | G115: 47 | H115: 0.022 | I115: 0 | J115: 0 | K115: 0.220 | L115: 4.000 | M115: 13.000 | N115: 2.800 | O115: 0.220
A116: Хим.состав и калорийность российских продуктов питания,табл 6, стр 144 , 2012 Дели + | B116: Хлеб ржаной | C116: 20 | D116: 1.320 | E116: 0.24 | F116: 7.920 | G116: 40 | H116: 0.034 | I116: 0 | J116: 0 | K116: 0.280 | L116: 5.800 | M116: 30.000 | N116: 9.400 | O116: 0.780
B117: Итого: | C117: 585 | D117: =SUM(D111:D116) -> 19.11 | E117: =SUM(E111:E116) -> 19.61 | F117: 84.32 | G117: 565.50 | H117: 0.64 | I117: 10.03 | J117: 20.00 | K117: 4.31 | L117: 140.24 | M117: 419.21 | N117: 111.84 | O117: 10.56 | P117: 0.00 | Q117: 0.00
P127: 25% | Q127: 25%
A170: № рецептуры | B170: Наименование блюд | C170: Выход,г | D170: Белки, г | E170: Жиры, г | F170: Углеводы, г | G170: Калорийность, ккал | H170: Витамин B1, мг | I170: Витамин С, мг | J170: Витамин А, мг | K170: Витамин Е, мг | L170: Ca, мг | M170: P, мг | N170: Mg, мг | O170: Fe, мг
B171: 2-ая неделя
B172: 1 день
A173: Хим.состав и калорийность российских продуктов питания табл 9 стр 184 , 2012 Дели + | B173: Плоды и ягоды свежие (яблоки) | C173: 100 | D173: 0.4 | E173: 0.4 | F173: 9.8 | G173: 47 | H173: 0.03 | I173: 10 | K173: 0.2 | L173: 16 | M173: 11 | N173: 9 | O173: 2.2
A174: № 234,330 Сбор.рец. На прод-ию для обуч. Во всех образ.учреж-Дели 2017 | B174: Биточки рыбные в сметанном соусе | C174: 80/20 | D174: 9.105 | E174: 10.100 | F174: 12.917 | G174: 146.52 | H174: 0.052 | I174: 0.536 | J174: 10.920 | K174: 4.079 | L174: 32.804 | M174: 120.770 | N174: 19.248 | O174: 1.066
A175: № 171 Сбор.рец. На прод-ию для обуч. Во всех образ.учреж-Дели 2017 | B175: Каша гречневая рассыпчатая с маслом сливочным | C175: 150/3 | D175: 4.590 | E175: 5.470 | F175: 27.760 | G175: 193.80 | H175: 0.210 | I175: 0.000 | J175: 20.000 | K175: 0.450 | L175: 25.190 | M175: 208.850 | N175: 140.520 | O175: 4.720
A176: № 376 Сбор.рец. На прод-ию для обуч. Во всех образ.учреж-Дели 2017 | B176: Чай с мармеладом | C176: 185/13,5 | D176: 0.09 | E176: 0.02 | F176: 10.72 | G176: 43.34 | I176: 0.03 | L176: 11.25 | M176: 2.95 | N176: 1.70 | O176: 0.29 | P176: 0 | Q176: 0
A177: Хим.состав и калорийность российских продуктов питания,табл 6, стр 144 , 2012 Дели + | B177: Хлеб ржаной | C177: 20 | D177: 1.320 | E177: 0.240 | F177: 7.920 | G177: 40 | H177: 0.034 | I177: 0 | J177: 0 | K177: 0.280 | L177: 5.800 | M177: 30.000 | N177: 9.400 | O177: 0.780
B178: Итого: | C178: 571.5 | D178: =SUM(D173:D177) -> 15.51 | E178: 16.23 | F178: 69.12 | G178: 470.26 | H178: 0.33 | I178: 10.57 | J178: 30.92 | K178: 5.01 | L178: 91.04 | M178: 373.57 | N178: 179.87 | O178: 9.06 | P178: 0.00 | Q178: 0.00
B180: 2 день
A181: ТТК | B181: Бутерброд с сыром (45/15) | C181: 60 | D181: 7.26 | E181: 4.35 | F181: 22.14 | G181: 157.25 | H181: 0.05 | I181: 0.11 | J181: 31.50 | K181: 0.56 | L181: 159.00 | M181: 119.25 | N181: 14.55 | O181: 0.60
A182: №143,241 Сбор.рец. На прод-ию для обуч. Во всех образ.учреж-Дели 2017 | B182: Овощи тушеные с мясом | C182: 50/150 | D182: 9.10 | E182: 12.08 | F182: 22.34 | G182: 211.35 | H182: 0.11 | I182: 18.78 | J182: 39.00 | K182: 0.00 | L182: 68.94 | M182: 172.79 | N182: 38.24 | O182: 2.68
A183: ТТК | B183: Чай "Витаминный" с ягодами | C183: 185/10/5 | D183: 0.24 | E183: 0.09 | F183: 12.42 | G183: 54.20 | H183: 0.00 | I183: 50.03 | J183: 0.00 | K183: 0.19 | L183: 13.95 | M183: 3.65 | N183: 2.25 | O183: 0.41
A184: промышленного выпуска | B184: Батончик злаковый | C184: 24 | D184: 1.20 | E184: 1.92 | F184: 17.52 | G184: 93.60
A185: Хим.состав и калорийность российских продуктов питания,табл 6, стр 144 , 2012 Дели + | B185: Хлеб ржаной | C185: 30 | D185: 1.98 | E185: 0.36 | F185: 11.88 | G185: 59.40 | H185: 0.03 | I185: 0.00 | J185: 0.00 | K185: 0.28 | L185: 5.80 | M185: 30.00 | N185: 9.40 | O185: 0.78 | P185: 0 | Q185: 0%
B186: Итого: | C186: 514 | D186: =D181+D182+D183+D184+D185 -> 19.78 | E186: =E181+E182+E183+E184+E185 -> 18.80 | F186: 86.30 | G186: 575.80 | H186: 0.21 | I186: 68.92 | J186: 70.50 | K186: 1.03 | L186: 247.69 | M186: 325.69 | N186: 64.44 | O186: 4.47 | P186: 25% | Q186: 25%
B188: 3 день
A189: № 52 Сбор.рец. На прод-ию для обуч. Во всех образ.учреж-Дели -2017 | B189: Салат из свеклы отварной | C189: 60 | D189: 0.84 | E189: 3.61 | F189: 4.96 | G189: 55.68 | H189: 0.01 | I189: 3.99 | J189: 0.00 | K189: 1.62 | L189: 21.28 | M189: 24.38 | N189: 12.42 | O189: 0.79
A190: № 294 Сбор.рец. На прод-ию для обуч. Во всех образ.учреж-Дели -2017 | B190: Котлеты из мяса кур | C190: 90 | D190: 11.85 | E190: 8.06 | F190: 18.53 | G190: 198.00 | H190: 0.18 | I190: 0.81 | J190: 12.42 | K190: 61.47 | L190: 51.64 | M190: 69.30 | N190: 19.98 | O190: 3.24
A191: № 312 Сбор.рец. На прод-ию для обуч. Во всех образ.учреж-Дели -2017 | B191: Пюре картофельное с маслом сливочным | C191: 150/5 | D191: 3.13 | E191: 8.43 | F191: 20.51 | G191: 170.25 | H191: 0.14 | I191: 18.16 | J191: 20.00 | K191: 0.23 | L191: 38.18 | M191: 88.10 | N191: 27.75 | O191: 1.02
A192: № 376 Сбор.рец. На прод-ию для обуч. Во всех образ.учреж-Дели 2017 | B192: Чай с сахаром | C192: 190/10 | D192: 0.07 | E192: 0.02 | F192: 10.00 | G192: 40.00 | I192: 0.03 | L192: 10.95 | M192: 2.80 | N192: 1.40 | O192: 0.26
A193: Хим.состав и калорийность российских продуктов питания табл 6 стр 134 , 2012 Дели + | B193: Хлеб пшеничный | C193: 35 | D193: 2.660 | E193: 0.280 | F193: 17.220 | G193: 82 | H193: 0.039 | I193: 0 | J193: 0 | K193: 0.385 | L193: 7.000 | M193: 22.750 | N193: 4.900 | O193: 0.385
A194: Хим.состав и калорийность российских продуктов питания,табл 6, стр 144 , 2012 Дели + | B194: Хлеб ржаной | C194: 25 | D194: 1.650 | E194: 0.300 | F194: 9.900 | G194: 50 | H194: 0.043 | I194: 0 | J194: 0 | K194: 0.350 | L194: 7.250 | M194: 37.500 | N194: 11.750 | O194: 0.975
B195: Итого: | C195: 565 | D195: =SUM(D189:D194) -> 20.20 | E195: =SUM(E189:E194) -> 20.70 | F195: 81.11 | G195: 595.68 | H195: 0.41 | I195: 22.99 | J195: 32.42 | K195: 64.06 | L195: 136.30 | M195: 244.82 | N195: 78.20 | O195: 6.67 | P195: 25% | Q195: 25%
B197: 4 день
A198: Хим.состав и калорийность российских продуктов питания табл 9 стр 186 , 2012 Дели + | B198: Плоды и ягоды свежие (мандарин) | C198: 100 | D198: 0.8 | E198: 0.20 | F198: 7.5 | G198: 38.0 | H198: 0.06 | I198: 38.00 | K198: 0.20 | L198: 35.00 | M198: 17.00 | N198: 11.00 | O198: 0.10
A199: №279,331 Сбор.рец. На прод-ию для питания детей в дошк образоват учрежд-Дели 2017 | B199: Тефтели мясные в сметанно-томатном соусе | C199: 60/40 | D199: 7.284 | E199: 11.790 | F199: 8.738 | G199: 133.99 | H199: 0.048 | I199: 0.276 | J199: 29.620 | K199: 0.421 | L199: 20.726 | M199: 80.202 | N199: 15.521 | O199: 0.640
A200: № 203 Сбор.рец. На прод-ию для обуч. Во всех образ.учреж-Дели 2017 | B200: Макаронные изделия отварные с маслом сливочным | C200: 150/3 | D200: 5.10 | E200: 2.85 | F200: 31.96 | G200: 176.10 | H200: 0.06 | I200: 0.00 | J200: 12.00 | K200: 0.80 | L200: 11.91 | M200: 38.07 | N200: 8.62 | O200: 0.86
A201: ТТК | B201: Напиток из свежих фруктов (75С) | C201: 200 | D201: 0.34 | E201: 0.17 | F201: 11.48 | G201: 63.60 | H201: 0.02 | I201: 3.17 | J201: 0.00 | K201: 0.13 | L201: 16.67 | M201: 7.05 | N201: 7.78 | O201: 0.88
A202: Хим.состав и калорийность российских продуктов питания табл 6 стр 134 , 2012 Дели + | B202: Хлеб пшеничный | C202: 20 | D202: 1.520 | E202: 0.160 | F202: 9.840 | G202: 47 | H202: 0.022 | I202: 0 | J202: 0 | K202: 0.220 | L202: 4.000 | M202: 13.000 | N202: 2.800 | O202: 0.220
B203: Итого: | C203: 573 | D203: =SUM(D198:D202) -> 15.04 | E203: =SUM(E198:E202) -> 15.17 | F203: 69.52 | G203: 458.69 | H203: 0.21 | I203: 41.45 | J203: 41.62 | K203: 1.77 | L203: 88.31 | M203: 155.32 | N203: 45.72 | O203: 2.70 | P203: 0.00 | Q203: 0.00
B205: 5 день
A206: № 12 Сбор.рец. На прод-ию для питания детей в дошк образ.организациях-Дели + -2016 | B206: Салат из кукурузы к/с | C206: 60 | D206: 1.23 | E206: 2.11 | F206: 4.92 | G206: 59.58 | H206: 0.06 | I206: 5.58 | J206: 0.00 | K206: 1.70 | L206: 11.20 | M206: 34.67 | N206: 11.72 | O206: 0.39
A207: № 265 Сбор.рец. На прод-ию для обуч. Во всех образ.учреж-Дели -2017 | B207: Плов из говядины с рисом | C207: 50/150 | D207: 16.03 | E207: 18.16 | F207: 45.91 | G207: 415.89 | H207: 0.07 | I207: 1.80 | J207: 0.00 | K207: 4.00 | L207: 18.14 | M207: 242.92 | N207: 51.52 | O207: 3.39
A208: № 376 Сбор.рец. На прод-ию для обуч. Во всех образ.учреж-Дели 2017 | B208: Чай с сахаром,с яблоком | C208: 180/10/10 | D208: 0.11 | E208: 0.06 | F208: 10.990 | G208: 45 | H208: 0.003 | I208: 1.03 | K208: 0.02 | L208: 12.700 | M208: 3.9 | N208: 2.3 | O208: 0.500
A209: Хим.состав и калорийность российских продуктов питания табл 6 стр 134 , 2012 Дели + | B209: Хлеб пшеничный | C209: 20 | D209: 1.520 | E209: 0.160 | F209: 9.840 | G209: 47 | H209: 0.022 | I209: 0 | J209: 0 | K209: 0.220 | L209: 4.000 | M209: 13.000 | N209: 2.800 | O209: 0.220
A210: Хим.состав и калорийность российских продуктов питания,табл 6, стр 144 , 2012 Дели + | B210: Хлеб ржаной | C210: 20 | D210: 1.320 | E210: 0.240 | F210: 7.920 | G210: 40 | H210: 0.034 | I210: 0 | J210: 0 | K210: 0.280 | L210: 5.800 | M210: 30.000 | N210: 9.400 | O210: 0.780 | P210: 0 | Q210: 0
B211: Итого: | C211: 500 | D211: =D206+D207+D208+D209+D210 -> 20.21 | E211: =E206+E207+E208+E209+E210 -> 20.73 | F211: 79.58 | G211: 607.12 | H211: 0.19 | I211: 8.41 | J211: 0.00 | K211: 6.22 | L211: 51.83 | M211: 324.49 | N211: 77.74 | O211: 5.29 | P211: =P206+P207+P208+P209+P210 -> 0.00 | Q211: =Q206+Q207+Q208+Q209+Q210 -> 0.00
B213: 6 день
A214: Хим.состав и калорийность российских продуктов питания табл 9 стр 184 , 2012 Дели + | B214: Плоды и ягоды свежие (яблоки) | C214: 100 | D214: 0.40 | E214: 0.40 | F214: 9.80 | G214: 47.00 | H214: 0.03 | I214: 10.00 | K214: 0.20 | L214: 16.00 | M214: 11.00 | N214: 9.00 | O214: 2.20
A215: №293 Сбор.рец. На прод-ию для обуч. Во всех образ.учреж-Дели 2017 | B215: Птица запеченная | C215: 90 | D215: 10.610 | E215: 15.964 | F215: 0.000 | G215: 202 | H215: 0.072 | I215: 2.430 | J215: 96.48 | K215: 1.908 | L215: 48.690 | M215: 171.522 | N215: 22.428 | O215: 1.980
A216: № 203 Сбор.рец. На прод-ию для обуч. Во всех образ.учреж-Дели 2017 | B216: Каша геркулесовая молочная с маслом сливочным | C216: 180/5 | D216: 6.25 | E216: 3.92 | F216: 42.10 | G216: 230.10 | H216: 0.19 | I216: 1.05 | J216: 36.20 | K216: 0.59 | L216: 136.52 | M216: 206.08 | N216: 54.59 | O216: 1.53
A217: № 376 Сбор.рец. На прод-ию для обуч. Во всех образ.учреж-Дели 2017 | B217: Чай с сахаром | C217: 190/10 | D217: 0.070 | E217: 0.020 | F217: 10.000 | G217: 40 | I217: 0.030 | L217: 10.950 | M217: 2.800 | N217: 1.400 | O217: 0.260
A218: Хим.состав и калорийность российских продуктов питания табл 6 стр 134 , 2012 Дели + | B218: Хлеб пшеничный | C218: 20 | D218: 1.520 | E218: 0.160 | F218: 9.840 | G218: 47 | H218: 0.022 | I218: 0 | J218: 0 | K218: 0.220 | L218: 4.000 | M218: 13.000 | N218: 2.800 | O218: 0.220
A219: Хим.состав и калорийность российских продуктов питания,табл 6, стр 144 , 2012 Дели + | B219: Хлеб ржаной | C219: 20 | D219: 1.320 | E219: 0.240 | F219: 7.920 | G219: 40 | H219: 0.034 | I219: 0 | J219: 0 | K219: 0.280 | L219: 5.800 | M219: 30.000 | N219: 9.400 | O219: 0.780
B220: Итого: | C220: 615 | D220: =SUM(D214:D219) -> 20.17 | E220: =SUM(E214:E219) -> 20.70 | F220: =SUM(F214:F219) -> 79.66 | G220: 605.70 | H220: 0.35 | I220: 13.51 | J220: 132.68 | K220: 3.20 | L220: 221.96 | M220: 434.40 | N220: 99.62 | O220: 6.97
B221: ВСЕГО за 12 дней: | C221: =C62+C71+C91+C100+C117+C108+C220+C186+C195+C203+C211+C178 -> 6667 | D221: 224.23 | E221: 226.88 | F221: 945.00 | G221: 6730.57 | H221: 3.71 | I221: 287.75 | J221: 579.86 | K221: 170.16 | L221: 1825.76 | M221: 3911.95 | N221: 1149.89 | O221: 72.57
B222: В среднем на 1 учащегося в день: | C222: =C221/12 -> 556 | D222: 18.69 | E222: 18.91 | F222: 78.75 | G222: 560.88 | H222: 0.31 | I222: 23.98 | J222: 48.32 | K222: 14.18 | L222: 152.15 | M222: 326.00 | N222: 95.82 | O222: 6.05 | P222: 25%

Sheet Меню старшие 5-11 кл Весна
B12: Согласовано | I12: Разработано и утвеждено
B13: Руководитель общеобразовательного учреждения | I13: Директор ООО "ФУДСОЦСЕРВИС"
B15: ________________________ | I15: ________________Э.Р. Харламова
B20: Примерное цикличное десятидневное меню
B21: Для организации питания обучающихся общеобразовательных организаций Республики Татарстан
B22: в возрасте с12лет и старше (5-11 классы)
B48: ПРИМЕРНОЕ ДВУХНЕДЕЛЬНОЕ МЕНЮ ДЛЯ ОБУЧАЮЩИХСЯ В ОБЩЕОБРАЗОВАТЕЛЬНЫХ ОРГАНИЗАЦИЯХ С 5 по 11 КЛАССЫ
B49: (общеобразовательные организации с режимом обучения до 6 часов)
A51: № рецептуры | B51: Наименование блюд | C51: Выход,г | D51: Белки, г | E51: Жиры, г | F51: Углеводы, г | G51: Калорийность, ккал | H51: Витамин B1, мг | I51: Витамин С, мг | J51: Витамин А, мг | K51: Витамин Е, мг | L51: Ca, мг | M51: P, мг | N51: Mg, мг | O51: Fe, мг
B52: 1-ая неделя
B53: 1 день
A54: № 271 Сбор.рец. На прод-ию для обуч. Во всех образ.учреж-Дели 2017 | B54: Котлета домашняя из говядины | C54: 100 | D54: 11.28 | E54: 16.71 | F54: 9.00 | G54: 221.74 | H54: 0.15 | I54: 0.22 | J54: 3.04 | K54: 2.52 | L54: 14.98 | M54: 116.22 | N54: 17.87 | O54: 1.89
A55: № 203 Сбор.рец. На прод-ию для обуч. Во всех образ.учреж-Дели 2017 | B55: Макаронные изделия отварные с маслом сливочным | C55: 180/5 | D55: 6.83 | E55: 4.43 | F55: 38.37 | G55: 220.56 | H55: 0.07 | I55: 0.00 | J55: 20.00 | K55: 0.98 | L55: 14.63 | M55: 46.10 | N55: 10.34 | O55: 1.03
A56: №349 Сбор.рец. На прод-ию для обуч. Во всех образ.учреж-Дели 2017 | B56: Компот из сухофруктов (75С) | C56: 200 | D56: 0.66 | E56: 0.09 | F56: 22.03 | G56: 92.90 | H56: 0.02 | I56: 0.73 | J56: 0.00 | K56: 0.51 | L56: 32.48 | M56: 23.44 | N56: 17.46 | O56: 0.70
A57: Хим.состав и калорийность российских продуктов питания табл 6 стр 134 , 2012 Дели + | B57: Хлеб пшеничный | C57: 30 | D57: 2.280 | E57: 0.240 | F57: 14.760 | G57: 71 | H57: 0.033 | I57: 0 | J57: 0 | K57: 0.330 | L57: 6.000 | M57: 19.500 | N57: 4.200 | O57: 0.330
A58: Хим.состав и калорийность российских продуктов питания,табл 6, стр 144 , 2012 Дели + | B58: Хлеб ржаной | C58: 35 | D58: 2.31 | E58: 0.42 | F58: 13.86 | G58: 69.30 | H58: 0.06 | I58: 0.00 | J58: 0.00 | K58: 0.49 | L58: 10.15 | M58: 52.50 | N58: 16.45 | O58: 1.37
B59: Итого: | C59: 550 | D59: =SUM(D54:D58) -> 23.36 | E59: =SUM(E54:E58) -> 21.89 | F59: 98.02 | G59: 675.00 | H59: 0.33 | I59: 0.94 | J59: 23.04 | K59: 4.83 | L59: 78.24 | M59: 257.76 | N59: 66.32 | O59: 5.32 | P59: =#REF!+P54+P55+P56+P57+P58 ->  | Q59: =#REF!+Q54+Q55+Q56+Q57+Q58 -> 
B61: 2 день
A62: № 15 Сбор.рец. На прод-ию для обуч. Во всех образ.учреж-Дели -2017 | B62: Сыр порционно | C62: 10 | D62: 2.63 | E62: 2.66 | F62: 0.00 | G62: 34.33 | H62: 0.00 | I62: 0.07 | J62: 21.00 | K62: 0.04 | L62: 100.00 | M62: 60.00 | N62: 5.50 | O62: 0.07
A63: № 260 Сбор.рец. На прод-ию для обуч. Во всех образ.учреж-Дели -2017 | B63: Гуляш из говядины | C63: 50/50 | D63: 10.45 | E63: 11.71 | F63: 22.89 | G63: 221.00 | H63: 0.03 | I63: 0.92 | K63: 2.61 | L63: 21.81 | M63: 154.15 | N63: 22.03 | O63: 3.06
A64: № 171 Сбор.рец. На прод-ию для обуч. Во всех образ.учреж-Дели 2015 | B64: Каша гречневая рассыпчатая с маслом сливочным | C64: 180/3 | D64: 5.55 | E64: 6.93 | F64: 37.71 | G64: 276.56 | H64: 0.25 | I64: 0.00 | J64: 11.98 | K64: 0.50 | L64: 29.51 | M64: 249.72 | N64: 168.62 | O64: 5.66
A65: № 377 Сбор.рец. На прод-ию для обуч. Во всех образ.учреж-Дели 2017 | B65: Чай с сахаром, с лимоном | C65: 185/10/5 | D65: 0.13 | E65: 0.02 | F65: 10.20 | G65: 42.00 | I65: 2.83 | K65: 0.01 | L65: 14.05 | M65: 4.40 | N65: 2.40 | O65: 0.34
A66: Хим.состав и калорийность российских продуктов питания табл 6 стр 134 , 2012 Дели + | B66: Хлеб пшеничный | C66: 20 | D66: 1.520 | E66: 0.160 | F66: 9.840 | G66: 47 | H66: 0.022 | I66: 0 | J66: 0 | K66: 0.220 | L66: 4.000 | M66: 13.000 | N66: 2.800 | O66: 0.220
A67: Хим.состав и калорийность российских продуктов питания,табл 6, стр 144 , 2012 Дели + | B67: Хлеб ржаной | C67: 40 | D67: 2.64 | E67: 0.48 | F67: 15.84 | G67: 79.20 | H67: 0.07 | I67: 0.00 | J67: 0.00 | K67: 0.56 | L67: 11.60 | M67: 60.00 | N67: 18.80 | O67: 1.56
B68: Итого: | C68: 553 | D68: =SUM(D62:D67) -> 22.92 | E68: =SUM(E62:E67) -> 21.96 | F68: 96.48 | G68: 700.09 | H68: 0.38 | I68: 3.82 | J68: 32.98 | K68: 3.94 | L68: 180.97 | M68: 541.27 | N68: 220.15 | O68: 10.91 | P68: 25% | Q68: 25%
B70: 3 день
A71: № 54 Сбор.рец. На прод-ию для обуч. Во всех образ.учреж-Дели 2017, 366/2016 | B71: Салат из свеклы с яблоками | C71: 100 | D71: 1.29 | E71: 6.08 | F71: 11.21 | G71: 103.90 | H71: 0.02 | I71: 6.44 | J71: 0.00 | K71: 10.60 | L71: 29.27 | M71: 31.81 | N71: 16.83 | O71: 1.48
A72: № 293 Сбор.рец. На прод-ию для обуч. Во всех образ.учреж-Дели 2017, 366/2016 | B72: Куриные бедра запеченные с томатным соусом | C72: 90/20 | D72: 12.00 | E72: 10.04 | F72: 13.76 | G72: 195.10 | H72: 0.10 | I72: 3.04 | J72: 64.92 | K72: 1.70 | L72: 47.55 | M72: 162.01 | N72: 24.73 | O72: 1.65
A73: № Сбор.рец. На прод-ию для обуч. Во всех образ.учреж-Дели 2017 | B73: Рис отварной рассыпчатый | C73: 180 | D73: 5.45 | E73: 11.45 | F73: 44.12 | G73: 262.64 | H73: 0.03 | I73: 0.00 | J73: 0.00 | K73: 0.34 | L73: 1.64 | M73: 73.13 | N73: 19.60 | O73: 0.63
A74: № 376 Сбор.рец. На прод-ию для обуч. Во всех образ.учреж-Дели 2017 | B74: Чай с мармеладом | C74: 185/13,5 | D74: 0.09 | E74: 0.02 | F74: 10.72 | G74: 43.34 | I74: 0.03 | L74: 11.25 | M74: 2.95 | N74: 1.70 | O74: 0.29
A75: Хим.состав и калорийность российских продуктов питания,табл 6, стр 144 , 2012 Дели + | B75: Хлеб ржаной | C75: 40 | D75: 2.64 | E75: 0.48 | F75: 15.84 | G75: 79.20 | H75: 0.07 | I75: 0.00 | J75: 0.00 | K75: 0.56 | L75: 11.60 | M75: 60.00 | N75: 18.80 | O75: 1.56
B76: Итого: | C76: 628.5 | D76: =SUM(D71:D75) -> 21.47 | E76: 24.13 | F76: =SUM(F71:F75) -> 95.65 | G76: 684.18 | H76: 0.22 | I76: 9.51 | J76: 64.92 | K76: 13.20 | L76: 101.30 | M76: 329.90 | N76: 81.67 | O76: 5.61 | P76: 25% | Q76: 25%
B78: 4 день
A79: № 229 Сбор.рец. На прод-ию для обуч. Во всех образ.учреж-Дели 2017 | B79: Рыба, тушенная в томате с овощами | C79: 50/50 | D79: 9.15 | E79: 5.62 | F79: 7.80 | G79: 105.00 | H79: 0.05 | I79: 3.73 | J79: 5.82 | K79: 2.52 | L79: 39.07 | M79: 162.19 | N79: 48.53 | O79: 0.85
A80: № 312 Сбор.рец. На прод-ию для обуч. Во всех образ.учреж-Дели -2017 | B80: Пюре картофельное с маслом сливочным | C80: 180/3 | D80: 3.71 | E80: 7.95 | F80: 24.57 | G80: 184.50 | H80: 0.17 | I80: 21.79 | J80: 12.00 | K80: 0.25 | L80: 45.09 | M80: 104.81 | N80: 33.30 | O80: 1.16
A81: № 139 Сбор.рец. На прод-ию для обуч. Во всех образ.учреж-Дели -2017 | B81: Капуста тушеная (доп. гарнир) | C81: 100 | D81: 1.23 | E81: 3.25 | F81: 7.89 | G81: 77.00 | H81: 0.03 | I81: 17.08 | J81: 0.00 | K81: 1.95 | L81: 58.75 | M81: 40.69 | N81: 20.85 | O81: 0.83 | P81: 0 | Q81: 0
A82: № 342 Сбор.рец. На прод-ию для обуч. Во всех образ.учреж-Дели 2017 | B82: Компот из свежих яблок (75 С) | C82: 200 | D82: 0.16 | E82: 0.16 | F82: 13.91 | G82: 58.74 | H82: 0.01 | I82: 0.90 | J82: 0.00 | K82: 0.08 | L82: 14.18 | M82: 4.40 | N82: 5.14 | O82: 0.95
A83: Хим.состав и калорийность российских продуктов питания табл 6 стр 134 , 2012 Дели + | B83: Хлеб пшеничный | C83: 30 | D83: 2.280 | E83: 0.240 | F83: 14.760 | G83: 71 | H83: 0.033 | I83: 0 | J83: 0 | K83: 0.330 | L83: 6.000 | M83: 19.500 | N83: 4.200 | O83: 0.330
A84: Хим.состав и калорийность российских продуктов питания,табл 6, стр 144 , 2012 Дели + | B84: Хлеб ржаной | C84: 25 | D84: 1.65 | E84: 0.30 | F84: 9.90 | G84: 49.50 | H84: 0.04 | I84: 0.00 | J84: 0.00 | K84: 0.35 | L84: 7.25 | M84: 37.50 | N84: 11.75 | O84: 0.98
B85: Итого: | C85: 638 | D85: =SUM(D79:D84) -> 18.18 | E85: 17.52 | F85: 78.83 | G85: 545.24 | H85: 0.33 | I85: 43.50 | J85: 17.82 | K85: 5.48 | L85: 170.34 | M85: 369.09 | N85: 123.77 | O85: 5.10 | P85: 20% | Q85: 20%
B88: 5 день
A89: № 15 Сбор.рец. На прод-ию для обуч. Во всех образ.учреж-Дели 2017 | B89: Сыр порционно | C89: 15 | D89: 3.95 | E89: 3.99 | F89: 0.00 | G89: 51.50 | H89: 0.01 | I89: 0.11 | J89: 31.50 | K89: 0.06 | L89: 150.00 | M89: 90.00 | N89: 8.25 | O89: 0.11
A90: № 294 Сбор.рец. На прод-ию для обуч. Во всех образ.учреж-Дели -2017 | B90: Котлеты из мяса кур | C90: 100 | D90: 13.17 | E90: 8.956 | F90: 20.584 | G90: 220 | H90: 0.200 | I90: 0.900 | J90: 13.800 | K90: 68.3 | L90: 57.380 | M90: 77.000 | N90: 22.200 | O90: 3.600
A91: № 175 Сбор.рец. На прод-ию для обуч. Во всех образ.учреж-Дели 2017 | B91: Каша "Дружба" молочная с маслом сливочным | C91: 200/5 | D91: 2.22 | E91: 8.530 | F91: 40.080 | G91: 227.44 | H91: 0.090 | I91: 0.864 | J91: 33.320 | K91: 0.122 | L91: 119.082 | M91: 139.848 | N91: 33.498 | O91: 0.721
A92: № 377 Сбор.рец. На прод-ию для обуч. Во всех образ.учреж-Дели 2017 | B92: Чай с сахаром, с лимоном | C92: 185/10/5 | D92: 0.13 | E92: 0.02 | F92: 10.20 | G92: 42.00 | I92: 2.83 | K92: 0.01 | L92: 14.05 | M92: 4.40 | N92: 2.40 | O92: 0.34
A93: Хим.состав и калорийность российских продуктов питания табл 6 стр 134 , 2012 Дели + | B93: Хлеб пшеничный | C93: 45 | D93: 3.42 | E93: 0.36 | F93: 22.14 | G93: 105.75 | H93: 0.05 | I93: 0.00 | J93: 0.00 | K93: 0.50 | L93: 9.00 | M93: 29.25 | N93: 6.30 | O93: 0.50
B94: Итого: | C94: 565 | D94: =SUM(D89:D93) -> 22.88 | E94: 21.86 | F94: 93.00 | G94: 646.69 | H94: 0.34 | I94: 4.70 | J94: 78.62 | K94: 68.99 | L94: 349.51 | M94: 340.50 | N94: 72.65 | O94: 5.26 | P94: 0.00 | Q94: 0.00
A101: № рецептуры | B101: Наименование блюд | C101: Выход,г | D101: Белки, г | E101: Жиры, г | F101: Углеводы, г | G101: Калорийность, ккал | H101: Витамин B1, мг | I101: Витамин С, мг | J101: Витамин А, мг | K101: Витамин Е, мг | L101: Ca, мг | M101: P, мг | N101: Mg, мг | O101: Fe, мг
B102: 2-ая неделя
B103: 1 день
A104: № 234,330 Сбор.рец. На прод-ию для обуч. Во всех образ.учреж-Дели 2017 | B104: Биточки рыбные в сметанном соусе | C104: 80/20 | D104: 9.105 | E104: 10.100 | F104: 12.917 | G104: 146.5 | H104: 0.052 | I104: 0.536 | J104: 10.92 | K104: 4.079 | L104: 32.804 | M104: 120.770 | N104: 19.248 | O104: 1.066
A105: № 171 Сбор.рец. На прод-ию для обуч. Во всех образ.учреж-Дели 2017 | B105: Каша гречневая рассыпчатая | C105: 180/5 | D105: 6.580 | E105: 7.570 | F105: 33.320 | G105: 242 | J105: 19.600 | K105: 0.54 | L105: 29.470 | M105: 249.960 | N105: 168.624 | O105: 5.770
A106: № 376 Сбор.рец. На прод-ию для обуч. Во всех образ.учреж-Дели 2017 | B106: Чай с мармеладом | C106: 185/13,5 | D106: 0.090 | E106: 0.020 | F106: 10.720 | G106: 43 | I106: 0.030 | L106: 11.250 | M106: 2.950 | N106: 1.700 | O106: 0.290
A107: Хим.состав и калорийность российских продуктов питания табл 6 стр 134 , 2012 Дели + | B107: Хлеб пшеничный | C107: 40 | D107: 3.040 | E107: 0.320 | F107: 19.680 | G107: 94 | H107: 0.044 | I107: 0 | J107: 0 | K107: 0.440 | L107: 8.000 | M107: 26.000 | N107: 5.600 | O107: 0.440
A108: Хим.состав и калорийность российских продуктов питания,табл 6, стр 144 , 2012 Дели + | B108: Хлеб ржаной | C108: 40 | D108: 2.64 | E108: 0.48 | F108: 15.84 | G108: 79.20 | H108: 0.07 | I108: 0.00 | J108: 0.00 | K108: 0.56 | L108: 11.60 | M108: 60.00 | N108: 18.80 | O108: 1.56
B109: Итого: | C109: 563.5 | D109: =SUM(D104:D108) -> 21.46 | E109: =SUM(E104:E108) -> 18.49 | F109: =SUM(F104:F108) -> 92.48 | G109: =G104+G105+G106+G106+G107+G108 -> 648.40 | H109: =SUM(H104:H108) -> 0.16 | I109: 0.57 | J109: 30.52 | K109: 5.62 | L109: 93.12 | M109: 459.68 | N109: 213.97 | O109: 9.13 | P109: =P103+P104+P105+P106+P107+P108 -> 0.00 | Q109: =Q103+Q104+Q105+Q106+Q107+Q108 -> 0.00
B111: 2 день
A112: №10 Сбор.рец. На прод-ию для обуч. Во всех образ.учреж-Дели 2016 | B112: Салат из зеленого горошка к/с с маслом растительным | C112: 100 | D112: 2.982 | E112: 7.76 | F112: 6.251 | G112: 84 | H112: 0.105 | I112: 11 | J112: 0 | K112: 2.408 | L112: 21.450 | M112: 59.950 | N112: 20.800 | O112: 0.684
A113: №143,241 Сбор.рец. На прод-ию для обуч. Во всех образ.учреж-Дели 2017 | B113: Овощи тушеные с мясом | C113: 50/200 | D113: 13.33 | E113: 15.28 | F113: 43.58 | G113: 366.67 | H113: 0.02 | I113: 18.77 | J113: 39.00 | K113: 0.00 | L113: 68.94 | M113: 172.79 | N113: 38.24 | O113: 2.24
A114: ТТК | B114: Чай "Витаминный" с ягодами | C114: 185/10/5 | D114: 0.24 | E114: 0.09 | F114: 12.420 | G114: 54 | H114: 0.004 | I114: 50.03 | J114: 0 | K114: 0.19 | L114: 13.950 | M114: 3.65 | N114: 2.25 | O114: 0.410
A115: Хим.состав и калорийность российских продуктов питания табл 6 стр 134 , 2012 Дели + | B115: Хлеб пшеничный | C115: 30 | D115: 2.28 | E115: 0.24 | F115: 14.760 | G115: 71 | H115: 0.033 | I115: 0 | J115: 0 | K115: 0.33 | L115: 6.000 | M115: 19.5 | N115: 4.2 | O115: 0.330
A116: Хим.состав и калорийность российских продуктов питания,табл 6, стр 144 , 2012 Дели + | B116: Хлеб ржаной | C116: 40 | D116: 2.640 | E116: 0.480 | F116: 15.840 | G116: 79 | H116: 0.068 | I116: 0 | J116: 0 | K116: 0.560 | L116: 11.600 | M116: 60.000 | N116: 18.800 | O116: 1.560
B117: Итого: | C117: 620 | D117: =SUM(D112:D116) -> 21.47 | E117: =SUM(E112:E116) -> 23.85 | F117: 92.85 | G117: =SUM(G112:G116) -> 654.17 | H117: 0.23 | I117: 79.80 | J117: 39.00 | K117: 3.49 | L117: 121.94 | M117: 315.89 | N117: 84.29 | O117: 5.22 | P117: 25% | Q117: 25%
B119: 3 день
A120: № 52 Сбор.рец. На прод-ию для обуч. Во всех образ.учреж-Дели -2017 | B120: Салат из свеклы отварной | C120: 100 | D120: 0.84 | E120: 3.61 | F120: 4.96 | G120: 55.68 | H120: 0.01 | I120: 3.99 | J120: 0.00 | K120: 1.62 | L120: 21.28 | M120: 24.38 | N120: 12.42 | O120: 0.79
A121: № 294 Сбор.рец. На прод-ию для обуч. Во всех образ.учреж-Дели -2017 | B121: Котлеты из мяса кур в томатном соусе | C121: 80/30 | D121: 10.05 | E121: 9.40 | F121: 16.31 | G121: 202.54 | H121: 0.17 | I121: 1.19 | J121: 19.36 | K121: 54.72 | L121: 50.63 | M121: 68.95 | N121: 21.46 | O121: 3.01
A122: № 312 Сбор.рец. На прод-ию для обуч. Во всех образ.учреж-Дели -2017 | B122: Пюре картофельное | C122: 180 | D122: 3.68 | E122: 5.76 | F122: 20.53 | G122: 154.70 | H122: 0.17 | I122: 21.79 | J122: 0.00 | K122: 0.22 | L122: 44.37 | M122: 103.91 | N122: 33.30 | O122: 1.21
A123: № 376 Сбор.рец. На прод-ию для обуч. Во всех образ.учреж-Дели 2017 | B123: Чай с сахаром | C123: 190/10 | D123: 0.07 | E123: 0.02 | F123: 10.00 | G123: 40.00 | I123: 0.03 | L123: 10.95 | M123: 2.80 | N123: 1.40 | O123: 0.26
A124: Хим.состав и калорийность российских продуктов питания табл 6 стр 134 , 2012 Дели + | B124: Хлеб пшеничный | C124: 20 | D124: 1.520 | E124: 0.160 | F124: 9.840 | G124: 47 | H124: 0.022 | I124: 0 | J124: 0 | K124: 0.220 | L124: 4.000 | M124: 13.000 | N124: 2.800 | O124: 0.220
A125: Хим.состав и калорийность российских продуктов питания,табл 6, стр 144 , 2012 Дели + | B125: Хлеб ржаной | C125: 30 | D125: 1.980 | E125: 0.360 | F125: 11.880 | G125: 59 | H125: 0.051 | I125: 0 | J125: 0 | K125: 0.420 | L125: 8.700 | M125: 45.000 | N125: 14.100 | O125: 1.170
B126: Итого: | C126: 640 | D126: =SUM(D120:D125) -> 18.14 | E126: =SUM(E120:E125) -> 19.31 | F126: 73.51 | G126: 559.32 | H126: 0.42 | I126: 27.01 | J126: 19.36 | K126: 57.19 | L126: 139.92 | M126: 258.04 | N126: 85.47 | O126: 6.66 | P126: 20% | Q126: 20%
B131: 4 день
A132: №279,331 Сбор.рец. На прод-ию для питания детей в дошк образоват учрежд-Дели 2017 | B132: Тефтели мясные в сметанно-томатном соусе | C132: 60/40 | D132: 7.284 | E132: 11.790 | F132: 8.738 | G132: 124 | H132: 0.048 | I132: 0.276 | J132: 29.620 | K132: 0.421 | L132: 20.726 | M132: 80.202 | N132: 15.521 | O132: 0.640
A133: № 203 Сбор.рец. На прод-ию для обуч. Во всех образ.учреж-Дели 2017 | B133: Макаронные изделия отварные с маслом сливочным | C133: 180/3 | D133: 6.120 | E133: 2.980 | F133: 38.400 | G133: 207 | H133: 0.068 | I133: 0.000 | J133: 12.000 | K133: 0.96 | L133: 14.150 | M133: 45.500 | N133: 10.343 | O133: 1.023
A134: ТТК | B134: Напиток из свежих фруктов (75 С) | C134: 200 | D134: 0.34 | E134: 0.17 | F134: 11.48 | G134: 63.60 | H134: 0.02 | I134: 3.17 | J134: 0.00 | K134: 0.13 | L134: 16.67 | M134: 7.05 | N134: 7.78 | O134: 0.88
A135: Хим.состав и калорийность российских продуктов питания табл 6 стр 134 , 2012 Дели + | B135: Хлеб пшеничный | C135: 35 | D135: 2.66 | E135: 0.28 | F135: 17.22 | G135: 82.25 | H135: 0.04 | I135: 0.00 | J135: 0.00 | K135: 0.39 | L135: 7.00 | M135: 22.75 | N135: 4.90 | O135: 0.39
A136: Хим.состав и калорийность российских продуктов питания,табл 6, стр 144 , 2012 Дели + | B136: Хлеб ржаной | C136: 35 | D136: 2.310 | E136: 0.420 | F136: 13.860 | G136: 69 | H136: 0.060 | I136: 0 | J136: 0 | K136: 0.490 | L136: 10.150 | M136: 52.500 | N136: 16.450 | O136: 1.365
B137: Итого: | C137: 553 | D137: =SUM(D132:D136) -> 18.71 | E137: =E132+E133+E133+E134+E135+E136 -> 18.62 | F137: =F132+F133+F135+F136 -> 78.22 | G137: =SUM(G132:G136) -> 546.18 | H137: 0.24 | I137: 3.45 | J137: 41.62 | K137: 2.39 | L137: 68.69 | M137: 208.00 | N137: 55.00 | O137: 4.29 | P137: 20% | Q137: 20%
B139: 5 день
A140: № 265 Сбор.рец. На прод-ию для обуч. Во всех образ.учреж-Дели -2017 | B140: Плов из говядины с рисом | C140: 50/200 | D140: 18.97 | E140: 20.36 | F140: 54.79 | G140: 509.83 | H140: 0.08 | I140: 2.31 | J140: 0.00 | K140: 5.25 | L140: 22.04 | M140: 285.70 | N140: 63.75 | O140: 4.13
A141: № 12 Сбор.рец. На прод-ию для питания детей в дошк образ.организациях-Дели + -2016 | B141: Салат из кукурузы к/с (доп гарнир) | C141: 50 | D141: 1.03 | E141: 1.76 | F141: 4.10 | G141: 49.65 | H141: 0.05 | I141: 4.65 | J141: 0.00 | K141: 1.41 | L141: 9.33 | M141: 28.89 | N141: 9.77 | O141: 0.33 | P141: 0 | Q141: 0
A142: № 376 Сбор.рец. На прод-ию для обуч. Во всех образ.учреж-Дели 2017 | B142: Чай с сахаром,с яблоком | C142: 180/10/10 | D142: 0.11 | E142: 0.06 | F142: 10.990 | G142: 45 | H142: 0.003 | I142: 1.03 | K142: 0.02 | L142: 12.700 | M142: 3.9 | N142: 2.3 | O142: 0.500
A143: Хим.состав и калорийность российских продуктов питания табл 6 стр 134 , 2012 Дели + | B143: Хлеб пшеничный | C143: 20 | D143: 1.520 | E143: 0.160 | F143: 9.840 | G143: 47 | H143: 0.022 | I143: 0 | J143: 0 | K143: 0.220 | L143: 4.000 | M143: 13.000 | N143: 2.800 | O143: 0.220
A144: Хим.состав и калорийность российских продуктов питания,табл 6, стр 144 , 2012 Дели + | B144: Хлеб ржаной | C144: 30 | D144: 1.98 | E144: 0.36 | F144: 11.88 | G144: 59.40 | H144: 0.05 | I144: 0.00 | J144: 0.00 | K144: 0.42 | L144: 8.70 | M144: 45.00 | N144: 14.10 | O144: 1.17
B145: Итого: | C145: 550 | D145: =SUM(D140:D144) -> 23.61 | E145: 22.70 | F145: 91.60 | G145: 710.93 | H145: 0.21 | I145: 7.99 | J145: 0.00 | K145: 7.32 | L145: 56.77 | M145: 376.49 | N145: 92.71 | O145: 6.35 | P145: 25% | Q145: 25%
B146: ВСЕГО за 10 дней: | C146: =C59+C68+C76+C85+C94+C109+C117+C126+C137+C145 -> 5861 | D146: 212.20 | E146: 210.32 | F146: 890.65 | G146: 6370.20 | H146: 2.86 | I146: 181.28 | J146: 347.88 | K146: 172.44 | L146: 1360.81 | M146: 3456.61 | N146: 1096.00 | O146: 63.85
B147: В среднем на 1 учащегося в день: | C147: =C146/10 -> 586 | D147: =D146/10 -> 21.22 | E147: 21.03 | F147: 89.06 | G147: 637.02 | H147: 0.29 | I147: 18.13 | J147: 34.79 | K147: 17.24 | L147: 136.08 | M147: 345.66 | N147: 109.60 | O147: 6.38 | P147: 20-25%

Sheet Замена 1 неделя
B2: Замена блюда
B4: День | C4: Прием пищи | D4: Заменяемое блюдо/ Вариант Замены | F4: Выход,г | G4: Белки,г | H4: Жиры,г | I4: Углеводы,г | J4: ЭЦ,ккал
B5: День 1 (1 неделя) | C5: Горячий завтрак младшие классы (7-11 лет) | D5: Котлета домашняя из говядины | E5: по меню | F5: 90 | G5: 8.15 | H5: 10.50 | I5: 8.10 | J5: 199.57
D6: Макаронные изделия (рожки) отварные с маслом сливочным | F6: 150/5 | G6: 5.12 | H6: 4.53 | I6: 31.99 | J6: 189.30
D7: Компот из сухофруктов (75С) | F7: 200 | G7: 0.66 | H7: 0.09 | I7: 22.03 | J7: 92.90
D8: Печенье | F8: 40 | G8: 3.06 | H8: 3.76 | I8: 17.24 | J8: 91.80
D9: Хлеб ржаной | F9: 20 | G9: 1.32 | H9: 0.24 | I9: 7.92 | J9: 39.60
D10: Итого: | F10: 505 | G10: 18.31 | H10: 19.12 | I10: 87.28 | J10: 613.17 | K10: 25%
D12: Сосиски отварные | F12: 100 | G12: 10.8 | H12: 13.84 | I12: 0.36 | J12: 201.12
D13: Макаронные изделия отварные с маслом сливочным | F13: 150 | G13: 4.40 | H13: 0.91 | I13: 31.99 | J13: 156.33
D14: Компот из сухофруктов (75С) | F14: 200 | G14: 0.66 | H14: 0.09 | I14: 22.03 | J14: 92.90
D15: Печенье | F15: 40 | G15: 3.06 | H15: 3.76 | I15: 17.24 | J15: 91.80
D16: Хлеб пшеничный | F16: 20 | G16: 1.315 | H16: 0.240 | I16: 7.92 | J16: 40
D17: Итого с заменой на сосиски: | F17: 515 | G17: =SUM(G12:G16) -> 20.18 | H17: =SUM(H12:H16) -> 18.84 | I17: =SUM(I12:I16) -> 79.56 | J17: =SUM(J12:J16) -> 581.75 | K17: 25%
B19: День 1 (1 неделя) | C19: Горячий завтрак старшие классы (12лет и старше) | D19: Котлета домашняя из говядины | F19: 100 | G19: 11.28 | H19: 16.71 | I19: 9.00 | J19: 221.74
D20: Макаронные изделия отварные с маслом сливочным | E20: по меню | F20: 180/5 | G20: 6.83 | H20: 4.43 | I20: 38.37 | J20: 220.56
D21: Компот из сухофруктов (75С) | F21: 200 | G21: 0.66 | H21: 0.09 | I21: 22.03 | J21: 92.90
D22: Хлеб пшеничный | F22: 30 | G22: 2.28 | H22: 0.24 | I22: 14.76 | J22: 70.50
D23: Хлеб ржаной | F23: 35 | G23: 2.310 | H23: 0.420 | I23: 13.860 | J23: 69
D24: Итого: | F24: 550 | G24: 23.36 | H24: 21.89 | I24: 98.02 | J24: 675.00 | K24: 25%
D26: Сосиски отварные | E26: замена | F26: 100 | G26: 10.80 | H26: 13.84 | I26: 0.36 | J26: 201.12
D27: Макаронные изделия отварные с маслом сливочным | F27: 200/3 | G27: 7.37 | H27: 8.20 | I27: 39.30 | J27: 257.60
D28: Компот из сухофруктов (75С) | F28: 200 | G28: 0.34 | H28: 0.17 | I28: 22.84 | J28: 106.40
D29: Хлеб пшеничный | F29: 40 | G29: 2.027 | H29: 0.213 | I29: 13.120 | J29: 62.667
D30: Хлеб ржаной | F30: 40 | G30: 2.64 | H30: 0.48 | I30: 15.84 | J30: 79.20
D31: Итого с заменой на сосиски: | F31: 583 | G31: =SUM(G26:G30) -> 23.18 | H31: =SUM(H26:H30) -> 22.90 | I31: =SUM(I26:I30) -> 91.46 | J31: =SUM(J26:J30) -> 706.99 | K31: 25%

Sheet Меню сокращенное
A1: ПРИМЕРНОЕ ДВУХНЕДЕЛЬНОЕ МЕНЮ ДЛЯ ОБУЧАЮЩИХСЯ В ОБЩЕОБРАЗОВАТЕЛЬНЫХ ОРГАНИЗАЦИЯХ (сезон весенний)
L2: АЛЬМЕТЬЕВСК
A3: ГОРЯЧИЙ ЗАВТРАК | M3: Мл.кл 64.19 рубь / Ст.кл 64.19 руб.
A4: 1-ая неделя
A5: 1 день | D5: 2 день | G5: 3 день | J5: 4 день | M5: 5 день | P5: 6 день
A6: Наименование блюд | B6: Выход,г | D6: Наименование блюд | E6: Выход,г | G6: Наименование блюд | H6: Выход,г | J6: Наименование блюд | K6: Выход,г | M6: Наименование блюд | N6: Выход,г | P6: Наименование блюд | Q6: Выход,г
B7: 7-11 лет | C7: 12 лет и ст | E7: 7-11 лет | F7: 12 лет и ст | H7: 7-11 лет | I7: 12 лет и ст | K7: 7-11 лет | L7: 12 лет и ст | N7: 7-11 лет | O7: 12 лет и ст | Q7: 7-11 лет
D8: Плоды и ягоды свежие (апельсин) | E8: 100 | F8: нет
D9: Сыр порционно | E9: 10 | F9: 10 | G9: Салат из свеклы с яблоками | H9: 60 | I9: 100 | J9: Капуста тушеная (доп.гарнир) | K9: 75 | L9: 100 | M9: Сыр порционно | N9: 15 | O9: 15 | P9: Плоды и ягоды свежие (яблоки) | Q9: 100
A10: Сосиски отварные (дет.питание) Халяль | B10: 100 | C10: 100 | D10: Гуляш из отварной говядины | E10: 50/50 | F10: 50/50 | G10: Куриные бедра запеченные с томатным соусом | H10: 90/20 | I10: 90/20 | J10: Рыба тушеная с овощами в томате | K10: 50/50 | L10: 50/50 | M10: Котлеты из мяса кур | N10: 90 | O10: 100 | P10: Котлеты говяжьи | Q10: 90
A11: Макаронные изделия (рожки)отварные с маслом сливочным | B11: 150/5 | C11: 180//5 | D11: Каша гречневая рассыпчатая с маслом сливочным | E11: 150/5 | F11: 180/3 | G11: Рис отварной рассыпчатый с маслом сливочным | H11: 150/5 | I11: 180 | J11: Пюре картофельное с маслом сливочным | K11: 150/5 | L11: 180/3 | M11: Каша "Дружба" молочная с маслом сливочным | N11: 180/5 | O11: 200/5 | P11: Гороховое пюре с маслом сливочным | Q11: 150/5
A12: Компот из сухофруктов (75С) | B12: 200 | C12: 200 | D12: Чай с сахаром,с лимоном | E12: 185/10/5 | F12: 185/10/5 | G12: Чай с мармеладом | H12: 185/13,5 | I12: 185/13,5 | J12: Компот из свежих яблок (75С)(сахара 10г) | K12: 200 | L12: 200 | M12: Чай с сахаром,с лимоном | N12: 185/10/5 | O12: 185/10/5 | P12: Чай с сахаром | Q12: 190/10
A13: Печенье | B13: 40 | C13: нет
A14: Хлеб пшеничный | B14: нет | C14: 30 | D14: Хлеб пшеничный | E14: 20 | F14: 20 | G14: Хлеб пшеничный | H14: 20 | J14: Хлеб пшеничный | K14: 20 | L14: 30 | M14: Хлеб пшеничный | N14: 30 | O14: 45 | P14: Хлеб пшеничный | Q14: 20
A15: Хлеб ржаной | B15: 20 | C15: 35 | D15: Хлеб ржаной | E15: нет | F15: 40 | G15: Хлеб ржаной | H15: 20 | I15: 40 | J15: Хлеб ржаной | K15: 20 | L15: 25 | P15: Хлеб ржаной | Q15: 20
A16: Итого: | B16: 505 | C16: 550 | D16: Итого: | E16: 585 | F16: 553 | G16: Итого: | H16: 563.5 | I16: 628.5 | J16: Итого: | K16: 570 | L16: 638 | M16: Итого: | N16: 520 | O16: 565 | P16: Итого: | Q16: 585
A17: Белки,г | B17: 18.310 | C17: 23.360 | D17: Белки,г | E17: 20.190 | F17: 22.920 | G17: Белки,г | H17: 19.330 | I17: 21.470 | J17: Белки,г | K17: 16.170 | L17: 18.180 | M17: Белки,г | N17: 20.210 | O17: 22.880 | P17: Белки,г | Q17: 19.110
A18: Жиры,г | B18: 19.120 | C18: 21.890 | D18: Жиры,г | E18: 20.670 | F18: 21.960 | G18: Жиры,г | H18: 18.790 | I18: 24.130 | J18: Жиры,г | K18: 16.590 | L18: 17.520 | M18: Жиры,г | N18: 19.770 | O18: 21.860 | P18: Жиры,г | Q18: 19.610
A19: Углеводы,г | B19: 87.280 | C19: 98.020 | D19: Углеводы,г | E19: 79.620 | F19: 96.480 | G19: Углеводы,г | H19: 83.040 | I19: 95.650 | J19: Углеводы,г | K19: 65.900 | L19: 78.830 | M19: Углеводы,г | N19: 79.560 | O19: 93.000 | P19: Углеводы,г | Q19: 84.320
A20: ЭЦ,ккал | B20: 613.170 | C20: 675.000 | D20: ЭЦ,ккал | E20: 594.330 | F20: 700.090 | G20: ЭЦ,ккал | H20: 596.380 | I20: 684.180 | J20: ЭЦ,ккал | K20: 478.340 | L20: 545.240 | M20: ЭЦ,ккал | N20: 569.600 | O20: 646.690 | P20: ЭЦ,ккал | Q20: 565.500
A22: Доп.питание | D22: Доп.питание | G22: Доп.питание | J22: Доп.питание | M22: Доп.питание
A23: Щи из свежей капусты с мясными фрикадельками,со сметаной | B23: 250/22/10 | D23: Суп картофельный с пшенной крупой на мясном бульоне с мясом говядины | E23: 250/10 | G23: Суп овощной с куриными фрикадельками,со сметаной | H23: 250/22/10 | J23: Суп лапша домашняя с мясом птицы | K23: 250/15 | M23: Рассольник ленинградский с мясными фрикадельками со сметаной | N23: 250/22/10
A24: Чай с сахаром | B24: 190/10 | D24: Кисель | E24: 200 | G24: Напиток из изюма | H24: 200 | J24: Чай с сахаром | K24: 190/10 | M24: Напиток из шиповника | N24: 200
A25: Хлеб ржаной | B25: 30 | D25: Хлеб ржаной | E25: 30 | G25: Хлеб ржаной | H25: 30 | J25: Хлеб ржаной | K25: 30 | M25: Хлеб ржаной | N25: 30
A26: ИТОГО | B26: 512 | D26: ИТОГО | E26: 490 | G26: ИТОГО | H26: 512 | J26: ИТОГО | K26: 495 | M26: ИТОГО | N26: 512.000
A28: 2-ая неделя
A29: 1 день | D29: 2 день | G29: 3 день | J29: 4 день | M29: 5 день | P29: 6 день
A30: Наименование блюд | B30: Выход,г | D30: Наименование блюд | E30: Выход,г | G30: Наименование блюд | H30: Выход,г | J30: Наименование блюд | K30: Выход,г | M30: Наименование блюд | N30: Выход,г | P30: Наименование блюд | Q30: Выход,г
B31: 7-11 лет | C31: 12 лет и ст | E31: 7-11 лет | F31: 12 лет и ст | H31: 7-11 лет | I31: 12 лет и ст | K31: 7-11 лет | L31: 12 лет и ст | N31: 7-11 лет | O31: 12 лет и ст | Q31: 7-11 лет | R31: 12 лет и ст
A33: Плоды и ягоды свежие (яблоки) | B33: 100 | C33: нет | D33: Бутерброд с сыром 45/15/Салат из зеленого горошка ст.кл | E33: 60 | F33: 100 | G33: Салат из отварной свеклы | H33: 60 | I33: 100 | J33: Плоды и ягоды свежие (мандарины/апельсин) | K33: 100 | L33: нет | M33: Салат из кукурузы к/с | N33: 60 | O33: 50 | P33: Плоды и ягоды свежие (яблоки) | Q33: 100
A34: Биточки рыбные в сметанном | B34: 80/20 | C34: 80/20 | G34: Котлеты из мяса кур/Котлеты из мяса кур в томатном соусе с овощами (для ст кл) | H34: 90 | I34: 80/30 | J34: Тефтели мясные в томатно-сметанном соусе | K34: 60/40 | L34: 60/40 | M34: Плов из говядины с рисовой крупой | N34: 50/150 | O34: 50/200 | P34: Куриное бедро /цыплята/куриная грудка /запеченные | Q34: 90
A35: Каша гречневая рассыпчатая с маслом сливочным | B35: 150/3 | C35: 180/5 | D35: Овощи тушеные с мясом | E35: 50/150 | F35: 50/200 | G35: Пюре картофельное с маслом сливочным/Пюре картофельное (ст.кл) | H35: 150/5 | I35: 180 | J35: Макаронные изделия отварные с маслом сливочным | K35: 150/3 | L35: 180/3 | P35: Каша геркулесовая молочная с маслом сливочным | Q35: 180/5
C36: 185/15 | D36: замена на Котлета домашняя/ИЛИ сосиски отварные | E36: 90/100 | F36: 100/100
C37: 30 | D37: по замене Каша Дружба"Молочная" | E37: 150/5 | F37: 220/5
A38: Чай с мармеладом | B38: 185/13,5 | C38: 185/13,5 | D38: Чай "Витаминный" с ягодами | E38: 185/10/5 | F38: 185/10/5 | G38: Чай с сахаром | H38: 190/10 | I38: 190/10 | J38: Напиток из свежих фруктов 75С (сахара 10г) | K38: 200 | L38: 200 | M38: Чай с сахаром с яблоком | N38: 180/10/10 | O38: 180/10/10 | P38: Чай с сахаром | Q38: 190/10
D39: Батончик злаковый | E39: 24 | F39: нет
A40: Хлеб пшеничный | B40: нет | C40: 40 | D40: Хлеб пшеничный | E40: нет | F40: 30 | G40: Хлеб пшеничный | H40: 35 | I40: 20 | J40: Хлеб пшеничный | K40: 20 | L40: 35 | M40: Хлеб пшеничный | N40: 20 | O40: 20 | P40: Хлеб пшеничный | Q40: 20
A41: Хлеб ржаной | B41: 20 | C41: 40 | D41: Хлеб ржаной | E41: 30 | F41: 40 | G41: Хлеб ржаной | H41: 25 | I41: 30 | J41: Хлеб ржаной | K41: нет | L41: 35 | M41: Хлеб ржаной | N41: 20 | O41: 30 | P41: Хлеб ржаной | Q41: 20
A42: Итого: | B42: 571.5 | C42: 563.5 | D42: Итого: | E42: 514 | F42: 620 | G42: Итого: | H42: 565 | I42: 640 | J42: Итого: | K42: 573 | L42: 553 | M42: Итого: | N42: 500 | O42: 550 | P42: Итого: | Q42: 615
A43: Белки,г | B43: 15.510 | C43: 21.460 | D43: Белки,г | E43: 19.780 | F43: 21.470 | G43: Белки,г | H43: 20.200 | I43: 18.140 | J43: Белки,г | K43: 15.040 | L43: 18.710 | M43: Белки,г | N43: 20.210 | O43: 23.610 | P43: Белки,г | Q43: 20.170
A44: Жиры,г | B44: 16.230 | C44: 18.490 | D44: Жиры,г | E44: 18.800 | F44: 23.850 | G44: Жиры,г | H44: 20.700 | I44: 19.310 | J44: Жиры,г | K44: 15.170 | L44: 18.620 | M44: Жиры,г | N44: 20.730 | O44: 22.700 | P44: Жиры,г | Q44: 20.700
A45: Углеводы,г | B45: 69.120 | C45: 92.480 | D45: Углеводы,г | E45: 86.300 | F45: 92.850 | G45: Углеводы,г | H45: 81.110 | I45: 73.510 | J45: Углеводы,г | K45: 69.520 | L45: 78.220 | M45: Углеводы,г | N45: 79.580 | O45: 91.600 | P45: Углеводы,г | Q45: 79.660
A46: ЭЦ,ккал | B46: 470.260 | C46: 648.400 | D46: ЭЦ,ккал | E46: 575.800 | F46: 654.170 | G46: ЭЦ,ккал | H46: 595.680 | I46: 559.320 | J46: ЭЦ,ккал | K46: 458.690 | L46: 546.180 | M46: ЭЦ,ккал | N46: 607.120 | O46: 710.930 | P46: ЭЦ,ккал | Q46: 605.700
A48: Доп.питание | D48: Доп.питание | G48: Доп.питание | J48: Доп.питание | M48: Доп.питание
A49: БОРЩ из свежей капусты с мясными фрикадельками,со сметаной | B49: 250/22/10 | D49: Суп картофельный с горохом с мясными фрикадельками | E49: 250/22 | G49: Рассольник ленинградский с куриными фрикадельками,со сметаной | H49: 250/22/10 | J49: Суп картофельный с фасолью с мясными фрикадельками | K49: 250/22 | M49: Суп картофельный с клецками с мясом птицы | N49: 250/15
A50: Компот из сухофруктов | B50: 200 | D50: Напиток из изюма | E50: 200 | G50: Кисель | H50: 200 | J50: Чай с сахаром | K50: 190/10 | M50: Напиток из шиповника | N50: 200
A51: Хлеб ржаной | B51: 30 | D51: Хлеб ржаной | E51: 30 | G51: Хлеб ржаной | H51: 30 | J51: Хлеб ржаной | K51: 30 | M51: Хлеб ржаной | N51: 30
A52: ИТОГО | B52: 512 | D52: ИТОГО | E52: 502 | G52: ИТОГО | H52: 512 | J52: ИТОГО | K52: 502 | M52: ИТОГО | N52: 495
